[Event "Early-Titled-Tuesday-Blitz-April-02-2024"]
[Site "Chess.com"]
[Date "2024.04.02"]
[Round "4"]
[White "Tol_Tol"]
[Black "abelmat"]
[Result "0-1"]
[WhiteElo "2303"]
[BlackElo "2130"]
[TimeControl "180+1"]
[EndTime "8:40:16 PDT"]
[Termination "abelmat won on time"]

1. d4 {[%clk 0:03:00.9]} 1... d5 {[%clk 0:02:59.8]} 2. c4 {[%clk 0:03:00.1]}
2... e6 {[%clk 0:03:00.1]} 3. Nc3 {[%clk 0:03:00.4]} 3... Nf6 {[%clk 0:03:00.2]}
4. Bg5 {[%clk 0:03:00.5]} 4... Be7 {[%clk 0:03:00]} 5. e3 {[%clk 0:03:01]} 5...
Nbd7 {[%clk 0:02:58.3]} 6. Nf3 {[%clk 0:02:59.4]} 6... h6 {[%clk 0:02:57.4]} 7.
Bh4 {[%clk 0:02:59.4]} 7... O-O {[%clk 0:02:56.6]} 8. cxd5 {[%clk 0:02:57.9]}
8... exd5 {[%clk 0:02:56.2]} 9. Bd3 {[%clk 0:02:57.8]} 9... c6 {[%clk
0:02:54.6]} 10. Qc2 {[%clk 0:02:52.2]} 10... Re8 {[%clk 0:02:52.2]} 11. O-O
{[%clk 0:02:51.1]} 11... Ne4 {[%clk 0:02:52.3]} 12. Bg3 {[%clk 0:02:45.5]} 12...
Nxg3 {[%clk 0:02:51]} 13. hxg3 {[%clk 0:02:45.6]} 13... Nf6 {[%clk 0:02:47.9]}
14. Ne5 {[%clk 0:02:44.4]} 14... Bd6 {[%clk 0:02:43.8]} 15. f4 {[%clk
0:02:40.4]} 15... Ng4 {[%clk 0:02:26.5]} 16. Qe2 {[%clk 0:02:35.6]} 16... Nf6
{[%clk 0:02:14.7]} 17. Qc2 {[%clk 0:02:08.9]} 17... Ng4 {[%clk 0:02:12.2]} 18.
Rae1 {[%clk 0:01:38.3]} 18... Nf6 {[%clk 0:02:05.8]} 19. e4 {[%clk 0:01:32.6]}
19... dxe4 {[%clk 0:02:05.2]} 20. Nxe4 {[%clk 0:01:32.4]} 20... Nxe4 {[%clk
0:01:52.5]} 21. Bxe4 {[%clk 0:01:30.9]} 21... Be6 {[%clk 0:01:51.7]} 22. f5
{[%clk 0:01:11.6]} 22... Bd5 {[%clk 0:01:26.5]} 23. Bxd5 {[%clk 0:01:01.9]}
23... cxd5 {[%clk 0:01:22.5]} 24. f6 {[%clk 0:01:02]} 24... Bxe5 {[%clk
0:01:07.9]} 25. dxe5 {[%clk 0:00:59.8]} 25... Re6 {[%clk 0:00:48.9]} 26. Qf5
{[%clk 0:00:48.2]} 26... g6 {[%clk 0:00:45.7]} 27. Qf4 {[%clk 0:00:47.7]} 27...
g5 {[%clk 0:00:43]} 28. Qf5 {[%clk 0:00:20.3]} 28... Qb6+ {[%clk 0:00:36.7]} 29.
Kh2 {[%clk 0:00:20.1]} 29... Rae8 {[%clk 0:00:34.4]} 30. Re2 {[%clk 0:00:18.3]}
30... Qc7 {[%clk 0:00:32.6]} 31. Rfe1 {[%clk 0:00:17.8]} 31... Qc4 {[%clk
0:00:30.6]} 32. b3 {[%clk 0:00:16.8]} 32... Qc3 {[%clk 0:00:29.8]} 33. Re3
{[%clk 0:00:16.2]} 33... Qc7 {[%clk 0:00:28.4]} 34. R1e2 {[%clk 0:00:15.8]}
34... d4 {[%clk 0:00:27.3]} 35. Rd3 {[%clk 0:00:12.4]} 35... Rxe5 {[%clk
0:00:24.6]} 36. Rxe5 {[%clk 0:00:11.8]} 36... Qxe5 {[%clk 0:00:23.6]} 37. Qxe5
{[%clk 0:00:10.2]} 37... Rxe5 {[%clk 0:00:23.5]} 38. Rxd4 {[%clk 0:00:11.1]}
38... Re6 {[%clk 0:00:20.2]} 39. Rd7 {[%clk 0:00:11.5]} 39... Rxf6 {[%clk
0:00:18.8]} 40. Rxb7 {[%clk 0:00:11.6]} 40... Ra6 {[%clk 0:00:18.5]} 41. a4
{[%clk 0:00:11.1]} 41... Kg7 {[%clk 0:00:18.9]} 42. Kh3 {[%clk 0:00:09.8]} 42...
Kg6 {[%clk 0:00:17.5]} 43. g4 {[%clk 0:00:09.8]} 43... Kg7 {[%clk 0:00:16.8]}
44. Kg3 {[%clk 0:00:09.9]} 44... Ra5 {[%clk 0:00:15.6]} 45. Kf3 {[%clk 0:00:10]}
45... Ra6 {[%clk 0:00:15]} 46. Ke4 {[%clk 0:00:09.2]} 46... Re6+ {[%clk
0:00:14.2]} 47. Kd5 {[%clk 0:00:06.7]} 47... Ra6 {[%clk 0:00:12.8]} 48. Kc5
{[%clk 0:00:06.2]} 48... Kg6 {[%clk 0:00:11.8]} 49. Kb5 {[%clk 0:00:05.3]} 49...
Re6 {[%clk 0:00:10.1]} 50. Rxa7 {[%clk 0:00:05.4]} 50... Re2 {[%clk 0:00:09.1]}
51. Rc7 {[%clk 0:00:01.2]} 51... Rxg2 {[%clk 0:00:08]} 52. Rc4 {[%clk
0:00:01.2]} 52... h5 {[%clk 0:00:06.7]} 53. gxh5+ {[%clk 0:00:01.2]} 53... Kxh5
{[%clk 0:00:06.6]} 54. a5 {[%clk 0:00:02.1]} 54... g4 {[%clk 0:00:06.2]} 55. a6
{[%clk 0:00:02.6]} 55... Ra2 {[%clk 0:00:04.3]} 0-1

[Event "Early-Titled-Tuesday-Blitz-April-02-2024"]
[Site "Chess.com"]
[Date "2024.04.02"]
[Round "4"]
[White "JiaHaoxiang"]
[Black "Oleksandr_Bortnyk"]
[Result "1-0"]
[WhiteElo "2595"]
[BlackElo "3026"]
[TimeControl "180+1"]
[EndTime "8:40:17 PDT"]
[Termination "JiaHaoxiang won by resignation"]

1. e4 {[%clk 0:03:00.9]} 1... Nf6 {[%clk 0:02:59.8]} 2. Nc3 {[%clk 0:02:59.1]}
2... d5 {[%clk 0:02:58.7]} 3. exd5 {[%clk 0:02:57.2]} 3... Nxd5 {[%clk
0:02:58.9]} 4. Bc4 {[%clk 0:02:57.7]} 4... Nb6 {[%clk 0:02:58.9]} 5. Bb3 {[%clk
0:02:55.6]} 5... c5 {[%clk 0:02:58]} 6. d3 {[%clk 0:02:55.2]} 6... Nc6 {[%clk
0:02:57.7]} 7. Nge2 {[%clk 0:02:53.3]} 7... Bf5 {[%clk 0:02:54.3]} 8. O-O {[%clk
0:02:51.2]} 8... e6 {[%clk 0:02:54.7]} 9. Be3 {[%clk 0:02:49.8]} 9... Be7 {[%clk
0:02:52]} 10. Ng3 {[%clk 0:02:50]} 10... Bg6 {[%clk 0:02:52.4]} 11. f4 {[%clk
0:02:50.3]} 11... Nd4 {[%clk 0:02:51.9]} 12. Kh1 {[%clk 0:02:44]} 12... h5
{[%clk 0:02:49.4]} 13. Bxd4 {[%clk 0:02:36.4]} 13... cxd4 {[%clk 0:02:50.3]} 14.
Nce4 {[%clk 0:02:30.6]} 14... h4 {[%clk 0:02:50.3]} 15. f5 {[%clk 0:02:25.4]}
15... hxg3 {[%clk 0:02:08.4]} 16. fxg6 {[%clk 0:02:25.1]} 16... Rxh2+ {[%clk
0:02:09.3]} 17. Kg1 {[%clk 0:02:25.4]} 17... f5 {[%clk 0:02:10.2]} 18. Nxg3
{[%clk 0:02:24.9]} 18... Bd6 {[%clk 0:02:10.5]} 19. Nxf5 {[%clk 0:01:34.5]}
19... exf5 {[%clk 0:01:55.8]} 20. Rxf5 {[%clk 0:01:27.6]} 20... Qh4 {[%clk
0:01:18.3]} 21. Qe1+ {[%clk 0:01:27.4]} 21... Qxe1+ {[%clk 0:00:56]} 22. Rxe1+
{[%clk 0:01:26.9]} 22... Kd7 {[%clk 0:00:56.9]} 23. Rf7+ {[%clk 0:01:25.9]}
23... Kc6 {[%clk 0:00:57.2]} 24. Re6 {[%clk 0:01:04.5]} 24... Rah8 {[%clk
0:00:55.9]} 25. Rxg7 {[%clk 0:01:04]} 25... a5 {[%clk 0:00:48.2]} 26. a4 {[%clk
0:00:53.5]} 26... Rh1+ {[%clk 0:00:35.8]} 27. Kf2 {[%clk 0:00:53.2]} 27... Nd7
{[%clk 0:00:35.4]} 28. Rf7 {[%clk 0:00:33.5]} 28... Ne5 {[%clk 0:00:28.4]} 29.
Rf4 {[%clk 0:00:25.2]} 29... Kc7 {[%clk 0:00:06.4]} 30. g7 {[%clk 0:00:25.4]}
30... Nxd3+ {[%clk 0:00:06.7]} 31. cxd3 {[%clk 0:00:25.4]} 31... Bxf4 {[%clk
0:00:07.6]} 32. Re7+ {[%clk 0:00:20.3]} 32... Kd6 {[%clk 0:00:06.8]} 33. gxh8=Q
{[%clk 0:00:20.1]} 33... Rxh8 {[%clk 0:00:05.7]} 34. Rxb7 {[%clk 0:00:20.2]}
34... Be3+ {[%clk 0:00:04.7]} 35. Ke2 {[%clk 0:00:17.7]} 35... Rh1 {[%clk
0:00:03.8]} 36. Rb5 {[%clk 0:00:15.7]} 36... Rg1 {[%clk 0:00:02.1]} 37. Kf3
{[%clk 0:00:15.5]} 37... Rf1+ {[%clk 0:00:02.3]} 38. Kg4 {[%clk 0:00:15.7]}
38... Rf4+ {[%clk 0:00:02.5]} 39. Kh3 {[%clk 0:00:16.1]} 39... Rf8 {[%clk
0:00:01.7]} 40. Rxa5 {[%clk 0:00:15.3]} 40... Rf2 {[%clk 0:00:02]} 41. Rd5+
{[%clk 0:00:12.9]} 41... Kc6 {[%clk 0:00:02.6]} 42. Bc4 {[%clk 0:00:10.7]} 42...
Rxb2 {[%clk 0:00:02.9]} 43. a5 {[%clk 0:00:10.5]} 43... Rb1 {[%clk 0:00:02.8]}
44. a6 {[%clk 0:00:10.1]} 44... Rh1+ {[%clk 0:00:03.5]} 45. Kg4 {[%clk
0:00:10.4]} 45... Ra1 {[%clk 0:00:04.3]} 46. Re5 {[%clk 0:00:09]} 46... Kd6
{[%clk 0:00:04.5]} 47. Re6+ {[%clk 0:00:09]} 47... Kd7 {[%clk 0:00:05.1]} 48.
Kf3 {[%clk 0:00:07.9]} 48... Ra4 {[%clk 0:00:02.6]} 49. Rg6 {[%clk 0:00:06.2]}
49... Kc7 {[%clk 0:00:02.3]} 50. Ke4 {[%clk 0:00:06.5]} 50... Ra5 {[%clk
0:00:02.6]} 51. Rg7+ {[%clk 0:00:06.3]} 51... Kb6 {[%clk 0:00:02.2]} 52. Rb7+
{[%clk 0:00:06.4]} 52... Kc6 {[%clk 0:00:02.9]} 53. g4 {[%clk 0:00:06.5]} 53...
Kd6 {[%clk 0:00:01.9]} 54. a7 {[%clk 0:00:05.8]} 54... Kc6 {[%clk 0:00:02]} 55.
Re7 {[%clk 0:00:05.1]} 55... Kb6 {[%clk 0:00:02.5]} 56. Bd5 {[%clk 0:00:02.1]}
56... Rxa7 {[%clk 0:00:01.8]} 57. Rxa7 {[%clk 0:00:02.9]} 57... Kxa7 {[%clk
0:00:02.7]} 58. Kf5 {[%clk 0:00:03.1]} 58... Kb6 {[%clk 0:00:03.1]} 59. g5
{[%clk 0:00:03.7]} 59... Kc5 {[%clk 0:00:04]} 60. g6 {[%clk 0:00:03.7]} 60...
Bh6 {[%clk 0:00:04.9]} 61. Ke6 {[%clk 0:00:04]} 61... Bg7 {[%clk 0:00:02.8]} 62.
Bc4 {[%clk 0:00:04.4]} 62... Bh8 {[%clk 0:00:02.8]} 63. Kf7 {[%clk 0:00:04.9]}
63... Kd6 {[%clk 0:00:03.5]} 64. g7 {[%clk 0:00:05.5]} 64... Bxg7 {[%clk
0:00:04.3]} 65. Kxg7 {[%clk 0:00:06.1]} 65... Ke5 {[%clk 0:00:05.2]} 66. Kg6
{[%clk 0:00:06.6]} 66... Kf4 {[%clk 0:00:05.8]} 67. Kf6 {[%clk 0:00:07.1]} 67...
Ke3 {[%clk 0:00:06.3]} 68. Ke5 {[%clk 0:00:07.8]} 1-0

[Event "Early-Titled-Tuesday-Blitz-April-02-2024"]
[Site "Chess.com"]
[Date "2024.04.02"]
[Round "4"]
[White "BestestBP"]
[Black "Mazarini41"]
[Result "0-1"]
[WhiteElo "2204"]
[BlackElo "2475"]
[TimeControl "180+1"]
[EndTime "8:40:17 PDT"]
[Termination "Mazarini41 won by checkmate"]

1. c4 {[%clk 0:03:00.9]} 1... Nf6 {[%clk 0:02:35.2]} 2. d4 {[%clk 0:02:59.5]}
2... c5 {[%clk 0:02:31.5]} 3. d5 {[%clk 0:02:46.8]} 3... b5 {[%clk 0:02:31.1]}
4. cxb5 {[%clk 0:02:45.4]} 4... a6 {[%clk 0:02:15.3]} 5. bxa6 {[%clk 0:02:46.3]}
5... Bxa6 {[%clk 0:02:14.6]} 6. Nc3 {[%clk 0:02:43.6]} 6... d6 {[%clk
0:02:12.6]} 7. e4 {[%clk 0:02:43.1]} 7... Bxf1 {[%clk 0:02:11.9]} 8. Kxf1 {[%clk
0:02:44]} 8... g6 {[%clk 0:02:12.2]} 9. g3 {[%clk 0:02:44]} 9... Bg7 {[%clk
0:02:12.4]} 10. Kg2 {[%clk 0:02:44.5]} 10... O-O {[%clk 0:02:12.5]} 11. Nge2
{[%clk 0:02:45.2]} 11... Ng4 {[%clk 0:02:11.2]} 12. h3 {[%clk 0:02:31.6]} 12...
Ne5 {[%clk 0:02:11.1]} 13. f4 {[%clk 0:02:32.2]} 13... Nc4 {[%clk 0:02:07.8]}
14. b3 {[%clk 0:02:33.1]} 14... Na3 {[%clk 0:02:01]} 15. Bb2 {[%clk 0:02:26.7]}
15... Nd7 {[%clk 0:01:58.5]} 16. Qd3 {[%clk 0:02:23.5]} 16... Qa5 {[%clk
0:01:54.8]} 17. Na4 {[%clk 0:02:11.9]} 17... Bxb2 {[%clk 0:01:52.7]} 18. Nxb2
{[%clk 0:02:12.8]} 18... Rfb8 {[%clk 0:01:48.5]} 19. Rhc1 {[%clk 0:01:59.2]}
19... Rb4 {[%clk 0:01:38.3]} 20. Nc3 {[%clk 0:01:47.3]} 20... Rd4 {[%clk
0:01:35.6]} 21. Qe3 {[%clk 0:01:39.8]} 21... Nb5 {[%clk 0:01:25.5]} 22. Nxb5
{[%clk 0:01:28.2]} 22... Qxb5 {[%clk 0:01:25.4]} 23. Nc4 {[%clk 0:01:28.6]}
23... Nf6 {[%clk 0:01:24.1]} 24. Nd2 {[%clk 0:00:34.6]} 24... Qb4 {[%clk
0:01:21.9]} 25. Rc2 {[%clk 0:00:22.4]} 25... Nxe4 {[%clk 0:01:19.5]} 26. Nxe4
{[%clk 0:00:20.8]} 26... Rxe4 {[%clk 0:01:19.3]} 27. Qf3 {[%clk 0:00:21.5]}
27... Qd4 {[%clk 0:01:15.4]} 28. Rd1 {[%clk 0:00:16]} 28... Qe3 {[%clk
0:00:48.9]} 29. Qxe3 {[%clk 0:00:12.6]} 29... Rxe3 {[%clk 0:00:49.1]} 30. Kf2
{[%clk 0:00:10.3]} 30... Re4 {[%clk 0:00:48.4]} 31. Kf3 {[%clk 0:00:08.6]} 31...
Rb4 {[%clk 0:00:47.6]} 32. Re1 {[%clk 0:00:07]} 32... Kf8 {[%clk 0:00:46.7]} 33.
Rd1 {[%clk 0:00:06.6]} 33... Rb6 {[%clk 0:00:45.9]} 34. Rd3 {[%clk 0:00:05.7]}
34... Rba6 {[%clk 0:00:46.1]} 35. a4 {[%clk 0:00:05.5]} 35... Rb6 {[%clk
0:00:46.4]} 36. Ke3 {[%clk 0:00:03.7]} 36... Rb4 {[%clk 0:00:46.6]} 37. Rcc3
{[%clk 0:00:03]} 37... Rab8 {[%clk 0:00:46.2]} 38. g4 {[%clk 0:00:03.4]} 38...
f6 {[%clk 0:00:45]} 39. Kd2 {[%clk 0:00:02.7]} 39... Kf7 {[%clk 0:00:45.4]} 40.
Kc2 {[%clk 0:00:03.2]} 40... Re4 {[%clk 0:00:45]} 41. Rf3 {[%clk 0:00:02.9]}
41... Re2+ {[%clk 0:00:44.8]} 42. Kd3 {[%clk 0:00:03]} 42... Re1 {[%clk
0:00:43.8]} 43. Kd2 {[%clk 0:00:02.5]} 43... Rh1 {[%clk 0:00:43.4]} 44. a5
{[%clk 0:00:02.1]} 44... Ra8 {[%clk 0:00:42.4]} 45. g5 {[%clk 0:00:02.4]} 45...
Rxa5 {[%clk 0:00:41.6]} 46. gxf6 {[%clk 0:00:02.9]} 46... exf6 {[%clk
0:00:42.1]} 47. Rce3 {[%clk 0:00:03.2]} 47... Rh2+ {[%clk 0:00:40]} 48. Kc3
{[%clk 0:00:03.7]} 48... Raa2 {[%clk 0:00:39.8]} 49. Re6 {[%clk 0:00:04]} 49...
Rhc2+ {[%clk 0:00:39.5]} 50. Kd3 {[%clk 0:00:04.5]} 50... Rd2+ {[%clk
0:00:39.6]} 51. Kc4 {[%clk 0:00:05.1]} 51... Rac2+ {[%clk 0:00:40]} 52. Kb5
{[%clk 0:00:05.7]} 52... Rb2 {[%clk 0:00:40.1]} 53. Kc6 {[%clk 0:00:05.6]} 53...
Rxb3 {[%clk 0:00:37.2]} 54. Rxd6 {[%clk 0:00:06.1]} 54... Rxf3 {[%clk
0:00:35.5]} 55. Rd7+ {[%clk 0:00:05.7]} 55... Kg8 {[%clk 0:00:34.4]} 56. Rd8+
{[%clk 0:00:05.4]} 56... Kg7 {[%clk 0:00:34.5]} 57. d6 {[%clk 0:00:06.2]} 57...
Rfd3 {[%clk 0:00:34]} 58. d7 {[%clk 0:00:06.8]} 58... Kh6 {[%clk 0:00:34.1]} 59.
Kc7 {[%clk 0:00:05.5]} 59... c4 {[%clk 0:00:34.5]} 60. f5 {[%clk 0:00:05.2]}
60... gxf5 {[%clk 0:00:33.5]} 61. Kc8 {[%clk 0:00:05.2]} 61... c3 {[%clk
0:00:33.4]} 62. h4 {[%clk 0:00:04.2]} 62... c2 {[%clk 0:00:33.3]} 63. Rf8 {[%clk
0:00:05.1]} 63... Rxd7 {[%clk 0:00:32.6]} 64. Rxf6+ {[%clk 0:00:05.8]} 64... Kg7
{[%clk 0:00:32.2]} 65. Rc6 {[%clk 0:00:06.7]} 65... Rd8+ {[%clk 0:00:29.9]} 66.
Kc7 {[%clk 0:00:06.5]} 66... R2d7+ {[%clk 0:00:30.1]} 67. Kb6 {[%clk 0:00:07.2]}
67... Rb8+ {[%clk 0:00:29.8]} 68. Ka6 {[%clk 0:00:07.8]} 68... Rd2 {[%clk
0:00:26.7]} 69. Ka7 {[%clk 0:00:07.7]} 69... Rb1 {[%clk 0:00:26.8]} 70. h5
{[%clk 0:00:07.1]} 70... c1=Q {[%clk 0:00:27.1]} 71. h6+ {[%clk 0:00:07.2]}
71... Kf7 {[%clk 0:00:24.6]} 72. Rxc1 {[%clk 0:00:06.9]} 72... Rxc1 {[%clk
0:00:24.3]} 73. Kb6 {[%clk 0:00:06.2]} 73... Rb2+ {[%clk 0:00:24.1]} 74. Ka5
{[%clk 0:00:05.9]} 74... Ra1# {[%clk 0:00:24.3]} 0-1

[Event "Early-Titled-Tuesday-Blitz-April-02-2024"]
[Site "Chess.com"]
[Date "2024.04.02"]
[Round "4"]
[White "Yeritsyaan"]
[Black "BashiqChess"]
[Result "0-1"]
[WhiteElo "2651"]
[BlackElo "2485"]
[TimeControl "180+1"]
[EndTime "8:40:22 PDT"]
[Termination "BashiqChess won by resignation"]

1. Nf3 {[%clk 0:03:00.9]} 1... Nf6 {[%clk 0:02:57.6]} 2. b3 {[%clk 0:03:00.2]}
2... d5 {[%clk 0:02:55.4]} 3. Bb2 {[%clk 0:03:00.5]} 3... Bf5 {[%clk 0:02:55.9]}
4. e3 {[%clk 0:03:00.4]} 4... e6 {[%clk 0:02:56.1]} 5. Be2 {[%clk 0:02:59.8]}
5... h6 {[%clk 0:02:56.1]} 6. O-O {[%clk 0:03:00.2]} 6... Be7 {[%clk 0:02:56.5]}
7. c4 {[%clk 0:02:59.9]} 7... O-O {[%clk 0:02:53.9]} 8. d3 {[%clk 0:02:59.9]}
8... Bh7 {[%clk 0:02:53.9]} 9. a3 {[%clk 0:02:59.8]} 9... c6 {[%clk 0:02:54.3]}
10. Nbd2 {[%clk 0:02:59.1]} 10... a5 {[%clk 0:02:54.6]} 11. Rc1 {[%clk
0:02:56.7]} 11... Nbd7 {[%clk 0:02:54.7]} 12. cxd5 {[%clk 0:02:51.2]} 12... exd5
{[%clk 0:02:52.2]} 13. Qc2 {[%clk 0:02:47.2]} 13... Re8 {[%clk 0:02:20.5]} 14.
Qb1 {[%clk 0:02:46.3]} 14... Bd6 {[%clk 0:01:54.1]} 15. Rfe1 {[%clk 0:02:40.9]}
15... Ng4 {[%clk 0:01:42]} 16. h3 {[%clk 0:02:25.8]} 16... Nge5 {[%clk
0:01:24.1]} 17. Nxe5 {[%clk 0:02:25.8]} 17... Nxe5 {[%clk 0:01:18.3]} 18. Nf3
{[%clk 0:02:20.8]} 18... Qb6 {[%clk 0:00:48.7]} 19. Bd4 {[%clk 0:02:15.8]} 19...
Nxf3+ {[%clk 0:00:44.7]} 20. Bxf3 {[%clk 0:02:12]} 20... Qb5 {[%clk 0:00:30.2]}
21. Qb2 {[%clk 0:01:50.5]} 21... Qxd3 {[%clk 0:00:18.1]} 22. Bxg7 {[%clk
0:01:43.4]} 22... Bxa3 {[%clk 0:00:18.1]} 23. Qa1 {[%clk 0:01:29.7]} 23... Bxc1
{[%clk 0:00:10.7]} 24. Bxh6 {[%clk 0:01:30.1]} 24... Qg6 {[%clk 0:00:08.5]} 25.
Bf4 {[%clk 0:01:23.8]} 25... Bd2 {[%clk 0:00:07.6]} 26. Rd1 {[%clk 0:01:23.4]}
26... Bb4 {[%clk 0:00:06.3]} 27. h4 {[%clk 0:01:11.1]} 27... Bf8 {[%clk
0:00:05.6]} 28. h5 {[%clk 0:01:08.5]} 28... Qe6 {[%clk 0:00:05]} 29. Bg3 {[%clk
0:00:46.8]} 29... Bg7 {[%clk 0:00:04.8]} 30. Qa4 {[%clk 0:00:47.1]} 30... Be4
{[%clk 0:00:04]} 31. Be2 {[%clk 0:00:46.8]} 31... Qh6 {[%clk 0:00:03.2]} 32. Bf4
{[%clk 0:00:46]} 32... Qe6 {[%clk 0:00:02.9]} 33. f3 {[%clk 0:00:44.9]} 33...
Bc2 {[%clk 0:00:02.7]} 34. Rc1 {[%clk 0:00:43.5]} 34... Bh7 {[%clk 0:00:02.2]}
35. Kf2 {[%clk 0:00:44]} 35... Bf6 {[%clk 0:00:02.6]} 36. Rh1 {[%clk 0:00:42.1]}
36... Be5 {[%clk 0:00:03]} 37. Bg5 {[%clk 0:00:39.1]} 37... Bg7 {[%clk
0:00:02.4]} 38. Qh4 {[%clk 0:00:37.3]} 38... f6 {[%clk 0:00:02.5]} 39. Bf4
{[%clk 0:00:37.5]} 39... f5 {[%clk 0:00:03.1]} 40. h6 {[%clk 0:00:37.3]} 40...
Bf6 {[%clk 0:00:03.6]} 41. Qh5 {[%clk 0:00:36.1]} 41... Qf7 {[%clk 0:00:03.7]}
42. Qh3 {[%clk 0:00:35.5]} 42... Qg6 {[%clk 0:00:04.1]} 43. Rg1 {[%clk
0:00:33.9]} 43... Bg5 {[%clk 0:00:04.6]} 44. g4 {[%clk 0:00:33.3]} 44... Bxf4
{[%clk 0:00:04.9]} 45. exf4 {[%clk 0:00:33.5]} 45... Qd6 {[%clk 0:00:03.6]} 46.
gxf5+ {[%clk 0:00:33.2]} 46... Kh8 {[%clk 0:00:03.8]} 47. Qh4 {[%clk 0:00:33.4]}
47... Rg8 {[%clk 0:00:02.6]} 48. Rg5 {[%clk 0:00:32.3]} 48... Qc5+ {[%clk
0:00:02.9]} 49. Kg3 {[%clk 0:00:32.5]} 49... Rae8 {[%clk 0:00:03.3]} 50. Bf1
{[%clk 0:00:32.1]} 50... Qg1+ {[%clk 0:00:03.5]} 51. Bg2 {[%clk 0:00:32.7]}
51... Qe1+ {[%clk 0:00:04.2]} 52. Kg4 {[%clk 0:00:32]} 52... Qxh4+ {[%clk
0:00:05.1]} 53. Kxh4 {[%clk 0:00:32.9]} 53... Rxg5 {[%clk 0:00:05.3]} 54. fxg5
{[%clk 0:00:30.9]} 54... Bxf5 {[%clk 0:00:05.8]} 55. Kg3 {[%clk 0:00:29.6]}
55... Kh7 {[%clk 0:00:05.9]} 56. Kf4 {[%clk 0:00:29.7]} 56... Bg6 {[%clk
0:00:06.5]} 57. Bh3 {[%clk 0:00:29.2]} 57... Rf8+ {[%clk 0:00:06.9]} 58. Kg3
{[%clk 0:00:28.4]} 58... b5 {[%clk 0:00:07.4]} 59. Bd7 {[%clk 0:00:27.7]} 59...
a4 {[%clk 0:00:07.3]} 60. bxa4 {[%clk 0:00:27]} 60... bxa4 {[%clk 0:00:08.2]}
61. Bxc6 {[%clk 0:00:27.8]} 61... a3 {[%clk 0:00:04.1]} 62. Bxd5 {[%clk
0:00:28]} 62... Rf5 {[%clk 0:00:04.3]} 63. Ba2 {[%clk 0:00:23.3]} 63... Rxg5+
{[%clk 0:00:04.6]} 64. Kf4 {[%clk 0:00:23.9]} 64... Rb5 {[%clk 0:00:04.7]} 65.
Kg4 {[%clk 0:00:19.5]} 65... Rb2 {[%clk 0:00:04.5]} 66. Bd5 {[%clk 0:00:20]}
66... a2 {[%clk 0:00:04.9]} 67. Bxa2 {[%clk 0:00:20.7]} 67... Rxa2 {[%clk
0:00:05.8]} 68. f4 {[%clk 0:00:21.6]} 68... Kxh6 {[%clk 0:00:06]} 69. f5 {[%clk
0:00:22.5]} 69... Bxf5+ {[%clk 0:00:06.5]} 70. Kh4 {[%clk 0:00:23.1]} 70... Bh7
{[%clk 0:00:06.5]} 71. Kg4 {[%clk 0:00:23.4]} 71... Ra5 {[%clk 0:00:07.1]} 72.
Kh4 {[%clk 0:00:24.3]} 72... Rg5 {[%clk 0:00:07.7]} 0-1